bitfinex/quotes_BTCUSD_20250204
["timestamp","ask_amount","ask_price","bid_price","bid_amount"]
[1738680979556,1.31246763,100130.0,100120.0,0.00022407]
[1738680980064,0.91283006,100130.0,100120.0,0.00022407]
[1738680980273,1.32496235,100130.0,100120.0,0.00022407]
[1738680981322,1.32496235,100130.0,100120.0,7e-08]
[1738680981323,1.17654435,100130.0,100120.0,7e-08]
[1738680981493,0.29985,100100.0,100090.0,0.07974482]
[1738680981704,0.81436735,100100.0,100090.0,0.08021341]
[1738680981973,0.82436735,100100.0,100090.0,0.00046859]
[1738680982218,1.04100135,100100.0,100090.0,0.00046859]
[1738680982461,0.93605535,100100.0,100090.0,0.00046859]
[1738680982692,0.96189635,100100.0,100090.0,0.00046859]
[1738680982903,0.94989635,100100.0,100090.0,0.00046859]
[1738680983142,1.06288135,100100.0,100090.0,0.00046859]
[1738680983372,1.02818135,100100.0,100090.0,0.00046859]
[1738680984232,1.12818135,100100.0,100090.0,0.00046859]
[1738680984448,1.11277835,100100.0,100090.0,0.00046859]
[1738680984663,1.16170763,100100.0,100090.0,5.9e-07]
[1738680984886,0.92091263,100100.0,100090.0,5.9e-07]
[1738680985324,0.89791263,100100.0,100090.0,5.9e-07]
[1738680985533,1.00040735,100100.0,100090.0,5.9e-07]
[1738680985746,1.00580735,100100.0,100090.0,5.9e-07]
[1738680985961,0.91331263,100100.0,100090.0,5.9e-07]
[1738680986374,0.93324203,100100.0,100090.0,5.9e-07]
[1738680986783,0.92324203,100100.0,100090.0,5.9e-07]
[1738680987204,1.03324203,100100.0,100090.0,5.9e-07]
[1738680987620,0.699895,100070.0,100060.0,0.00022428]
[1738680987823,0.80228006,100070.0,100060.0,0.00022428]
[1738680988031,0.40228006,100070.0,100060.0,0.00022428]
[1738680990462,0.10238506,100070.0,100060.0,0.00022428]
[1738680990730,0.10238506,100070.0,100060.0,0.17313428]
[1738680990965,0.160113,100090.0,100070.0,0.149892]
[1738680991195,0.25226606,100080.0,100060.0,0.37300928]
[1738680991442,0.25226606,100080.0,100060.0,0.37300628]
[1738680991634,0.25226606,100080.0,100060.0,0.17313428]
[1738680991826,0.149895,100070.0,100060.0,0.00022428]
[1738680992069,0.31747667,100070.0,100060.0,0.00022428]
[1738680992882,0.81860203,100070.0,100060.0,0.00022428]
[1738680993297,0.31215006,100070.0,100060.0,0.00022428]
[1738680993534,0.25228006,100070.0,100060.0,0.00022428]
[1738680995047,0.10238506,100070.0,100060.0,0.15013428]
[1738680995294,0.34973,100080.0,100060.0,0.15013428]
[1738680995295,0.149884,100080.0,100060.0,0.19712928]
[1738680995625,0.10238506,100080.0,100060.0,0.59687428]
[1738680995828,1.5,100070.0,100060.0,0.42000028]
[1738680996136,0.149866,100090.0,100070.0,0.023]
[1738680996382,0.10238506,100090.0,100070.0,0.023]
[1738680996557,1.5,100080.0,100070.0,0.023]
[1738680996914,1.5,100080.0,100070.0,0.172895]
[1738680997118,1.5,100080.0,100070.0,0.023]
[1738680997956,1.5,100080.0,100070.0,0.48311232]
[1738680998131,0.0001068,100090.0,100080.0,0.17288]
[1738680998356,0.0001068,100090.0,100080.0,0.1468]
[1738680998559,0.0001068,100090.0,100080.0,0.29668]
[1738681000878,0.0001068,100090.0,100080.0,0.1468]
[1738681002070,0.0001068,100090.0,100080.0,0.29668]
[1738681002286,0.0001068,100090.0,100080.0,0.54906506]
[1738681002488,0.0001068,100090.0,100080.0,0.85928238]
[1738681003136,0.00046697,100100.0,100090.0,0.322865]
[1738681003353,0.00046697,100100.0,100090.0,0.86086738]
[1738681003717,0.00046697,100100.0,100090.0,0.75848232]
[1738681003915,0.00046697,100100.0,100090.0,0.86086738]
[1738681004370,0.00046697,100100.0,100090.0,0.448265]
[1738681005182,0.00046697,100100.0,100090.0,0.1254]
[1738681005743,1.649874,100090.0,100070.0,0.13708629]
[1738681005948,0.45208506,100090.0,100070.0,0.1269]
[1738681006151,0.65191206,100090.0,100070.0,0.1269]
[1738681006355,0.45208506,100090.0,100070.0,0.1269]
[1738681006599,0.14988,100080.0,100070.0,0.1269]
[1738681007255,0.65191006,100090.0,100070.0,0.1269]
[1738681007657,0.85174306,100090.0,100070.0,0.1269]
[1738681007866,0.65191006,100090.0,100070.0,0.0493]
[1738681008038,0.45208406,100090.0,100070.0,0.0493]
[1738681008255,0.65190806,100090.0,100070.0,0.0493]
[1738681008968,0.73712626,100090.0,100070.0,0.0493]
[1738681009287,0.65190806,100090.0,100070.0,0.0493]
[1738681009852,0.45207906,100090.0,100070.0,0.0493]
[1738681010057,0.00046697,100100.0,100080.0,0.023]
[1738681010281,0.00046697,100100.0,100090.0,0.023]
[1738681011130,0.25270203,100100.0,100080.0,0.0781]
[1738681011275,0.10285203,100100.0,100080.0,0.0781]
[1738681011490,0.10285203,100100.0,100080.0,0.22798]
[1738681011749,0.25270403,100100.0,100080.0,0.0781]
[1738681011966,0.45250903,100100.0,100080.0,0.0781]
[1738681012082,0.25270403,100100.0,100080.0,0.0781]
[1738681012483,0.10238506,100090.0,100070.0,0.0493]
[1738681012744,0.00046697,100100.0,100080.0,0.023]
[1738681012950,0.10295883,100100.0,100080.0,0.37390595]
[1738681013381,0.10295883,100100.0,100080.0,0.023]
[1738681013515,0.10295883,100100.0,100080.0,0.172878]
[1738681013712,0.10295883,100100.0,100080.0,0.3739159]
[1738681013912,0.00057377,100100.0,100080.0,0.5737489]
[1738681014127,0.00057377,100100.0,100080.0,0.023]
[1738681014348,0.00057377,100100.0,100080.0,0.37390881]
[1738681014569,0.00057377,100100.0,100090.0,0.22706381]
[1738681014778,0.00057377,100100.0,100090.0,0.225865]
[1738681014982,1.50057377,100100.0,100090.0,0.076]
[1738681015222,1.50057377,100100.0,100090.0,0.225865]
[1738681015383,0.00057377,100100.0,100090.0,0.62186695]
[1738681015581,0.00057377,100100.0,100090.0,0.420865]
[1738681016153,0.549355,100120.0,100100.0,0.023]
[1738681016350,0.45197606,100120.0,100100.0,0.023]
[1738681016596,0.25221206,100120.0,100100.0,0.023]
[1738681016801,0.10238506,100120.0,100100.0,0.023]
[1738681017003,0.25220806,100120.0,100100.0,0.023]
[1738681017205,1.5,100110.0,100100.0,0.023]
[1738681017467,0.10238506,100120.0,100100.0,0.023]
[1738681017727,0.3995698,100140.0,100100.0,0.57364295]
[1738681017966,1.60238506,100130.0,100120.0,0.023]
[1738681018195,1.5,100130.0,100120.0,0.023]
[1738681018692,2.15169906,100130.0,100090.0,0.52077232]
[1738681018926,0.50192106,100120.0,100090.0,0.20088514]
[1738681019140,0.65175306,100120.0,100100.0,0.023]
[1738681019350,0.45197806,100120.0,100090.0,0.50074514]
[1738681019553,0.149835,100110.0,100090.0,0.35088514]
[1738681019757,0.45200006,100110.0,100090.0,0.35088514]
[1738681019966,0.45200006,100110.0,100090.0,0.27114032]
[1738681020378,0.25223506,100100.0,100090.0,0.04514032]
[1738681020582,0.25223506,100100.0,100090.0,0.00014032]
[1738681021171,0.35472978,100100.0,100090.0,0.00014032]
[1738681021373,0.81597173,100100.0,100090.0,0.00014032]
[1738681021640,0.8211857,100100.0,100090.0,0.00014032]
[1738681021840,0.7211857,100100.0,100090.0,0.00014032]
[1738681022176,0.41768903,100100.0,100090.0,0.00014032]
[1738681022557,0.71869098,100100.0,100090.0,0.00014032]
[1738681022672,0.82869098,100100.0,100090.0,0.00014032]
[1738681022880,0.299895,100070.0,100060.0,0.00022428]
[1738681023085,0.40228006,100070.0,100060.0,0.00069125]
[1738681023932,1.01356894,100070.0,100060.0,0.00069125]
[1738681024146,1.12356894,100070.0,100060.0,0.00069125]
[1738681024381,0.40228006,100070.0,100060.0,0.00069125]
[1738681024493,0.41252006,100070.0,100060.0,0.00069125]
[1738681024690,0.40228006,100070.0,100060.0,0.00069125]
[1738681025789,0.25228006,100070.0,100060.0,0.00069125]
[1738681026714,1.10328201,100070.0,100060.0,0.00069125]
[1738681026899,1.20577673,100070.0,100060.0,0.00069125]
[1738681027884,0.72577673,100070.0,100060.0,0.00069125]
[1738681028295,0.71577673,100070.0,100060.0,0.00069125]
[1738681028497,0.91577673,100070.0,100060.0,0.00069125]
[1738681028716,1.11328201,100070.0,100060.0,0.00069125]
[1738681028922,1.10328201,100070.0,100060.0,0.00069125]
[1738681029131,1.11328201,100070.0,100060.0,0.00069125]
[1738681029473,0.62328201,100070.0,100060.0,0.00069125]
[1738681029681,0.81577673,100070.0,100060.0,0.00069125]
[1738681030516,0.71328201,100070.0,100060.0,0.00069125]
[1738681030721,0.72352201,100070.0,100060.0,0.00069125]
[1738681030977,0.63352201,100070.0,100060.0,0.00069125]
[1738681031181,1.24312301,100070.0,100060.0,2.5e-07]
[1738681031309,1.24312301,100070.0,100030.0,4.331e-05]
[1738681031310,0.69994,100040.0,100030.0,4.331e-05]
[1738681031512,1.10582173,100040.0,100030.0,4.331e-05]
[1738681031917,1.01682368,100040.0,100030.0,4.331e-05]
[1738681032680,1.02682368,100040.0,100030.0,4.331e-05]
[1738681032917,0.60332701,100040.0,100030.0,4.331e-05]
[1738681033127,0.62332701,100040.0,100030.0,4.331e-05]
[1738681033347,0.72332701,100040.0,100030.0,4.331e-05]
[1738681034214,0.71332701,100040.0,100030.0,4.331e-05]
[1738681034421,0.81582173,100040.0,100030.0,4.331e-05]
[1738681034647,1.21582173,100040.0,100030.0,4.331e-05]
[1738681034898,1.00582173,100040.0,100030.0,4.331e-05]
[1738681035116,0.10238506,100040.0,100030.0,4.331e-05]
[1738681035852,0.10238506,100040.0,100030.0,0.17299831]
[1738681036051,0.10238506,100040.0,100030.0,0.02304331]
[1738681036230,0.10238506,100040.0,100030.0,0.17299831]
[1738681036467,0.10238506,100040.0,100030.0,4.331e-05]
[1738681036700,0.47855892,100040.0,100030.0,4.331e-05]
[1738681036875,0.45332701,100040.0,100030.0,4.331e-05]
[1738681037076,0.90332701,100040.0,100030.0,4.331e-05]
[1738681037282,0.60332701,100040.0,100030.0,4.331e-05]
[1738681037524,1.10332701,100040.0,100030.0,4.331e-05]
[1738681037762,1.10582173,100040.0,100030.0,4.331e-05]
[1738681038756,0.60332701,100040.0,100030.0,4.331e-05]
[1738681039227,0.40232506,100040.0,100030.0,4.331e-05]
[1738681039725,0.10238506,100040.0,100030.0,4.331e-05]
[1738681039965,0.10238506,100040.0,100030.0,0.15134331]
[1738681040217,1.60238506,100040.0,100030.0,0.30129831]
[1738681040573,1.60238506,100040.0,100030.0,0.15134331]
[1738681040981,1.5,100040.0,100030.0,0.3024979]
[1738681041212,0.08906877,100060.0,100050.0,0.172925]
[1738681041431,0.08906877,100060.0,100050.0,0.30362431]
[1738681041641,0.08906877,100060.0,100050.0,0.76275123]
[1738681041859,0.08906877,100060.0,100050.0,0.452425]
[1738681042663,0.00046706,100070.0,100060.0,0.17291]
[1738681042996,0.00046706,100070.0,100060.0,0.17410917]
[1738681043196,0.00046706,100070.0,100060.0,0.86372046]
[1738681043398,0.00046706,100070.0,100060.0,0.44981]
[1738681044154,0.25274712,100070.0,100060.0,0.1499]
[1738681044478,0.30691371,100070.0,100060.0,0.1269]
[1738681044879,0.349794,100060.0,100040.0,0.1294]
[1738681045084,0.25231006,100050.0,100040.0,0.1294]
[1738681045241,0.10238506,100050.0,100040.0,0.1294]
[1738681045442,0.25231006,100050.0,100040.0,0.1294]
[1738681045871,0.10238506,100050.0,100040.0,0.27934]
[1738681046104,0.54969,100060.0,100040.0,0.479252]
[1738681046105,0.149916,100060.0,100040.0,0.479252]
[1738681046339,0.45218106,100060.0,100040.0,0.479252]
[1738681046720,0.65207206,100060.0,100040.0,0.279339]
[1738681046970,0.65207206,100060.0,100040.0,0.1294]
[1738681047179,0.65207206,100060.0,100040.0,0.279339]
[1738681047413,0.25231006,100050.0,100040.0,0.1294]
[1738681049398,0.25231006,100050.0,100040.0,0.0484]
[1738681054165,0.25231006,100050.0,100030.0,4.331e-05]
[1738681054166,0.14994,100040.0,100030.0,4.331e-05]
[1738681054368,1.1988812,100040.0,100030.0,4.331e-05]
[1738681054573,0.40232506,100040.0,100030.0,4.331e-05]
[1738681055000,0.10238506,100040.0,100030.0,4.331e-05]
[1738681055222,0.10238506,100040.0,100030.0,0.27589831]
[1738681055432,0.25232506,100040.0,100030.0,0.12594331]
[1738681055626,0.10238506,100040.0,100030.0,0.12594331]
[1738681056111,0.25232506,100040.0,100030.0,0.12594331]
[1738681056336,0.349842,100050.0,100030.0,0.47582231]
[1738681056564,0.45222706,100050.0,100030.0,0.67575431]
[1738681056792,0.65213306,100050.0,100030.0,0.47582131]
[1738681057270,0.75336995,100050.0,100030.0,0.47582131]
[1738681057705,0.45222706,100050.0,100030.0,0.47582131]
[1738681057935,0.3602358,100060.0,100040.0,0.172932]
[1738681057936,0.3499118,100060.0,100040.0,0.172932]
[1738681058172,0.65218786,100060.0,100040.0,0.172932]
[1738681058390,0.45229686,100060.0,100040.0,0.372851]
[1738681058605,0.45229686,100060.0,100040.0,0.372847]
[1738681058832,0.65218686,100060.0,100040.0,0.372849]
[1738681059089,0.1500168,100060.0,100050.0,0.023]
[1738681059990,1.5001068,100060.0,100050.0,0.172925]
[1738681060192,1.5001068,100060.0,100050.0,0.297725]
[1738681060620,1.5001068,100060.0,100050.0,0.1478]
[1738681060810,1.6500168,100060.0,100050.0,0.1478]
[1738681061363,1.6500168,100060.0,100050.0,0.297725]
[1738681061567,1.6500168,100060.0,100050.0,0.1478]
[1738681061775,1.5001068,100060.0,100050.0,0.297725]
[1738681062365,1.6500168,100060.0,100050.0,0.1478]
[1738681062589,1.75240186,100060.0,100050.0,0.1248]
[1738681062795,0.10249186,100060.0,100040.0,0.00022428]
[1738681062994,0.45223006,100050.0,100040.0,0.00022428]
[1738681063827,1.26337097,100050.0,100040.0,0.00022428]
[1738681064712,0.29997,100020.0,100010.0,0.00022386]
[1738681064911,0.71947567,100020.0,100010.0,0.07996868]
[1738681065114,0.46222506,100020.0,100010.0,0.00022386]
[1738681065372,0.25235506,100020.0,100010.0,0.00022386]
[1738681066011,0.25235506,100020.0,100010.0,0.00036397]
[1738681066326,0.10238506,100020.0,100010.0,0.00036397]
[1738681066662,0.25235506,100020.0,100010.0,0.00036397]
[1738681066889,0.10238506,100020.0,100010.0,0.00036397]
[1738681067384,0.25235506,100020.0,100010.0,0.00036397]
[1738681068030,0.10238506,100020.0,100010.0,0.00036397]
[1738681068871,0.25235506,100020.0,100010.0,0.00036397]
[1738681069055,0.35270426,100020.0,100010.0,0.00036397]
[1738681069464,0.25235506,100020.0,100010.0,0.00036397]
[1738681070068,0.10238506,100020.0,100010.0,0.00036397]
[1738681070359,0.10238506,100020.0,100010.0,0.15034897]
[1738681070563,0.10238506,100020.0,100010.0,0.00036397]
[1738681070815,0.10238506,100020.0,100010.0,0.15034897]
[1738681071065,1.5,100030.0,100010.0,0.25224897]
[1738681071262,1.5,100030.0,100010.0,0.45222097]
[1738681071263,1.60238506,100030.0,100010.0,0.45222097]
[1738681071467,1.60238506,100030.0,100010.0,0.10226397]
[1738681071468,2.05478078,100030.0,100010.0,0.10226397]
[1738681071664,0.25235506,100020.0,100010.0,0.00036397]
[1738681076653,1.10362597,100020.0,100010.0,0.00036397]
[1738681076858,0.78349597,100020.0,100010.0,0.00036397]
[1738681077060,0.78599069,100020.0,100010.0,9.7e-07]
[1738681077283,0.41,100010.0,100000.0,0.00022386]
[1738681077488,0.92351097,100010.0,100000.0,0.00022386]
[1738681077693,0.25237006,100010.0,100000.0,0.00022386]
[1738681078070,0.85364097,100010.0,100000.0,0.00022386]
[1738681078298,1.00364097,100010.0,100000.0,0.00022386]
[1738681078895,0.72364097,100010.0,100000.0,0.00022386]
[1738681079096,0.62364097,100010.0,100000.0,0.00022386]
[1738681079706,0.63380435,100010.0,100000.0,0.00022386]
[1738681079910,0.80553877,100010.0,100000.0,0.00022386]
[1738681080309,0.82458277,100010.0,100000.0,0.00022386]
[1738681080710,0.84758277,100010.0,100000.0,0.00022386]
[1738681080912,1.11535368,100010.0,100000.0,0.00022386]
[1738681081116,1.17522368,100010.0,100000.0,8.6e-07]
[1738681081319,0.560013,99991.0,99990.0,0.00022407]
[1738681081527,1.72855676,99991.0,99990.0,0.0003245]
[1738681081764,1.43267576,99991.0,99990.0,0.00014043]
[1738681081922,1.18770176,99991.0,99990.0,4.3e-07]
[1738681082130,0.41,99966.0,99960.0,0.00022407]
[1738681082372,0.41,99966.0,99950.0,0.00022386]
[1738681082373,0.150073,99951.0,99950.0,0.00022386]
[1738681082532,0.25245806,99951.0,99950.0,0.00022386]
[1738681082733,0.25245806,99951.0,99950.0,0.00036432]
[1738681082734,0.83228406,99951.0,99950.0,0.00036432]
[1738681082963,0.83228406,99951.0,99932.0,7e-08]
[1738681082964,0.1601,99933.0,99932.0,7e-08]
[1738681083182,0.15013,99913.0,99912.0,0.08656657]
[1738681083379,0.26271506,99913.0,99912.0,0.08703542]
[1738681083595,0.25251506,99913.0,99912.0,0.08703542]
[1738681083785,0.10238506,99913.0,99912.0,0.08703542]
[1738681084206,0.10238506,99913.0,99912.0,0.0869451]
[1738681084365,0.15068531,99913.0,99912.0,0.0869451]
[1738681084961,0.15068531,99913.0,99912.0,0.00046885]
[1738681086366,0.04830025,99913.0,99912.0,0.04616885]
[1738681086898,0.01857702,99933.0,99919.0,0.150121]
[1738681087134,0.01857702,99933.0,99917.0,0.150124]
[1738681087336,0.01857702,99933.0,99929.0,0.150105]
[1738681087538,0.01857702,99933.0,99913.0,0.200174]
[1738681087738,0.10238506,99932.0,99900.0,0.00022428]
[1738681087953,0.10238506,99932.0,99918.0,0.150122]
[1738681088121,0.10238506,99932.0,99900.0,0.02322428]
[1738681088332,0.10238506,99932.0,99916.0,0.150125]
[1738681088534,0.10238506,99932.0,99900.0,0.02322428]
[1738681088535,0.10238506,99932.0,99910.0,0.00142518]
[1738681088894,0.01857702,99943.0,99920.0,0.023]
[1738681089337,0.10946805,99951.0,99929.0,0.200141]
[1738681089338,0.01857702,99942.0,99929.0,0.200141]
[1738681089506,0.01857702,99942.0,99920.0,0.023]
[1738681089682,0.01857702,99942.0,99929.0,0.150105]
[1738681090029,0.10238506,99941.0,99920.0,0.150118]
[1738681090227,0.1280794,99941.0,99917.0,0.200165]
[1738681090365,0.150094,99937.0,99913.0,0.200174]
[1738681090732,0.10238506,99936.0,99919.0,0.15012]
[1738681090862,0.10238506,99936.0,99912.0,0.00046885]
[1738681091062,0.31120377,99930.0,99912.0,0.00046885]
[1738681091268,0.15013,99913.0,99912.0,0.00046885]
[1738681091471,1.65013,99913.0,99912.0,0.00046885]
[1738681092694,1.69843025,99913.0,99912.0,0.00046885]
[1738681092902,1.54830025,99913.0,99912.0,0.00046885]
[1738681093107,0.15068531,99913.0,99912.0,0.00046885]
[1738681093525,1.65068531,99913.0,99912.0,0.00046885]
[1738681093732,1.54830025,99913.0,99912.0,0.00046885]
[1738681093877,0.15068531,99913.0,99912.0,0.00046885]
[1738681094081,0.30081531,99913.0,99912.0,0.00046885]
[1738681095097,0.31331945,99913.0,99912.0,0.00046885]
[1738681095302,0.35652278,99913.0,99912.0,0.00046885]
[1738681095746,0.30689178,99913.0,99912.0,0.00046885]
[1738681096104,0.29438764,99913.0,99912.0,0.00046885]
[1738681096302,0.45675236,99913.0,99912.0,0.00046885]
[1738681096815,0.35425764,99913.0,99912.0,0.00046885]
[1738681097285,0.35525764,99913.0,99912.0,0.00046885]
[1738681097476,0.35425764,99913.0,99912.0,0.00046885]
[1738681098349,0.29438764,99913.0,99912.0,0.00046885]
[1738681098932,0.29538764,99913.0,99912.0,0.00046885]
[1738681099136,1.79438764,99913.0,99912.0,0.00046885]
[1738681100907,1.94438764,99913.0,99912.0,0.00046885]
[1738681101139,1.78414864,99913.0,99912.0,0.00046885]
[1738681101304,0.28414864,99913.0,99912.0,0.00046885]
[1738681101894,0.03163358,99913.0,99912.0,0.00069334]
[1738681102007,0.03163358,99913.0,99912.0,0.04819425]
[1738681102211,0.03163358,99913.0,99912.0,0.12939425]
[1738681102434,1.5,99944.0,99913.0,0.15]
[1738681102640,1.5,99944.0,99926.0,0.01]
[1738681103008,0.02972374,99951.0,99950.0,0.345175]
[1738681103237,0.02972374,99951.0,99950.0,0.425375]
[1738681103784,0.02972374,99951.0,99950.0,0.52776006]
[1738681104029,0.08906877,99981.0,99950.0,0.37768506]
[1738681104230,0.08906877,99981.0,99979.0,0.15003]
[1738681104429,0.08906877,99981.0,99980.0,0.00120007]
[1738681104607,0.08906877,99981.0,99980.0,0.0802]
[1738681104939,0.08920871,99981.0,99980.0,0.35558506]
[1738681105121,0.08920871,99981.0,99980.0,0.40178506]
[1738681105711,0.08644967,99981.0,99980.0,0.40178506]
[1738681105897,0.0914,100030.0,99981.0,0.15]
[1738681106094,0.0914,100030.0,99980.0,0.48152988]
[1738681106095,0.19425345,100030.0,100020.0,0.14997]
[1738681106288,0.19425345,100030.0,100020.0,0.1741697]
[1738681106289,0.09186839,100030.0,100020.0,0.1741697]
[1738681106577,0.09186839,100030.0,100020.0,0.25137]
[1738681107545,0.09186839,100030.0,100020.0,0.0784]
[1738681107882,0.09186839,100030.0,100020.0,0.22837]
[1738681108003,0.09186839,100030.0,100010.0,0.499943]
[1738681108202,0.24182339,100030.0,100010.0,0.499943]
[1738681108407,0.39419945,100030.0,100010.0,0.149984]
[1738681108606,0.34420845,100030.0,100010.0,0.1511838]
[1738681108834,0.19425345,100030.0,100010.0,0.349961]
[1738681109035,0.19425345,100030.0,100010.0,0.349959]
[1738681109248,0.19425345,100030.0,100000.0,0.478373]
[1738681109249,0.39419545,100030.0,100000.0,0.428374]
[1738681109448,0.54416045,100030.0,100000.0,0.628364]
[1738681109650,0.54416045,100030.0,100010.0,0.149982]
[1738681109851,0.15046839,100030.0,100010.0,0.349955]
[1738681110070,0.149955,100030.0,100010.0,0.499955]
[1738681110269,0.14997,100020.0,100010.0,0.15]
[1738681110478,0.25235506,100020.0,100010.0,0.15]
[1738681110874,0.10238506,100020.0,100010.0,0.299985]
[1738681111085,0.35224206,100030.0,100010.0,0.15]
[1738681111281,0.14997,100020.0,100010.0,0.15]
[1738681111848,0.25235506,100020.0,100010.0,0.15]
[1738681112529,0.199995,100010.0,99986.0,0.07974482]
[1738681112736,0.45237006,100010.0,99989.0,0.15]
[1738681112934,0.25238106,100010.0,99992.0,0.15]
[1738681113116,0.25238106,100010.0,99986.0,0.07974482]
[1738681113117,0.25237006,100010.0,99987.0,0.00120003]
[1738681113329,0.25237006,100010.0,99993.0,0.15]
[1738681113539,0.15235006,100010.0,99985.0,0.200029]
[1738681113752,0.15,100000.0,99979.0,0.20004]
[1738681113952,0.30237406,100010.0,99979.0,0.20004]
[1738681114178,0.45247396,100010.0,99981.0,0.00120008]
[1738681114382,0.65245996,100010.0,99988.0,0.15]
[1738681114583,0.45247096,100010.0,99988.0,0.15]
[1738681114757,0.65245696,100010.0,99988.0,0.15]
[1738681114903,0.45247096,100010.0,99988.0,0.15]
[1738681115307,0.45251096,100010.0,99988.0,0.15]
[1738681115504,0.45251096,100010.0,99981.0,0.15]
[1738681115760,0.45250496,100010.0,99988.0,0.15]
[1738681116566,0.210167,100020.0,99989.0,0.10238506]
[1738681116763,0.36014,100030.0,100000.0,0.149989]
[1738681117025,0.1602,100030.0,100000.0,0.30236906]
[1738681117225,0.1602,100030.0,100000.0,0.65234506]
[1738681117400,0.1602,100030.0,100000.0,0.25237306]
[1738681117401,0.36014,100030.0,100000.0,0.25237306]
[1738681117621,0.36014,100030.0,99992.0,0.15]
[1738681117622,0.149978,100020.0,99992.0,0.15]
[1738681117822,1.04903916,100030.0,100000.0,0.149996]
[1738681118253,0.14997,100020.0,99994.0,0.15]
[1738681118436,0.349932,100020.0,99998.0,0.15]
[1738681118803,0.349932,100020.0,99998.0,0.300002]
[1738681119060,1.5,100010.0,99998.0,0.15]
[1738681119268,0.360144,100030.0,100000.0,0.149987]
[1738681119486,0.199947,100030.0,100000.0,0.45236306]
[1738681119683,1.5,100020.0,100000.0,0.65235706]
[1738681119886,1.5,100020.0,100000.0,0.45236306]
[1738681120038,1.5,100020.0,100010.0,0.149985]
[1738681120241,1.5,100020.0,100000.0,0.65235306]
[1738681120447,0.199906,100050.0,100010.0,0.27537006]
[1738681120648,0.34997542,100050.0,100020.0,0.149959]
[1738681120887,0.149942,100040.0,100010.0,0.80231206]
[1738681121029,1.5,100030.0,100020.0,0.149969]
[1738681121230,1.5,100030.0,100010.0,0.80231206]
[1738681121699,1.5,100030.0,100020.0,0.14997]
[1738681122537,1.5,100030.0,100020.0,0.17297]
[1738681122739,1.5,100030.0,100020.0,0.42655471]
[1738681122938,1.5,100030.0,100020.0,0.42535506]
[1738681123776,0.00014042,100050.0,100030.0,0.349878]
[1738681124007,0.34997042,100050.0,100020.0,0.67526106]
[1738681124204,1.5,100040.0,100010.0,0.630246]
[1738681124570,1.5,100040.0,100030.0,0.149955]
[1738681125117,1.5,100040.0,100030.0,0.27534006]
[1738681125342,0.00014042,100050.0,100040.0,0.023]
[1738681125542,0.00014042,100050.0,100040.0,0.67412811]
[1738681125729,0.00014042,100050.0,100040.0,0.82292883]
[1738681126286,0.00014042,100050.0,100040.0,0.81288883]
[1738681126492,0.00014042,100050.0,100040.0,0.50168506]
[1738681128093,0.00018042,100050.0,100040.0,0.50168506]
[1738681128621,0.00028722,100050.0,100040.0,0.50168506]
[1738681128824,0.00028722,100050.0,100040.0,0.25232506]
[1738681129051,1.50028722,100050.0,100040.0,0.25232506]
[1738681129601,1.50028722,100050.0,100040.0,0.27532506]
[1738681131323,1.50028722,100050.0,100040.0,0.14994]
[1738681132118,0.00028722,100050.0,100040.0,0.27532506]
[1738681134236,0.00028722,100050.0,100030.0,0.699803]
[1738681134411,0.00028722,100050.0,100030.0,0.40234006]
[1738681134752,1.50028722,100050.0,100030.0,0.10238506]
[1738681134949,1.50028722,100050.0,100030.0,0.25233806]
[1738681135623,0.01859403,100040.0,100030.0,0.10238506]
[1738681135824,0.01859403,100040.0,100030.0,0.25234006]
[1738681136435,0.01859403,100040.0,100020.0,0.699852]
[1738681136665,0.01859403,100040.0,100030.0,0.149955]
[1738681136869,1.50028722,100050.0,100030.0,0.149955]
[1738681136996,1.50028722,100050.0,100030.0,0.349889]
[1738681138007,1.65021222,100050.0,100020.0,1.00218106]
[1738681138239,1.50028722,100050.0,100030.0,0.349892]
[1738681138585,1.50028722,100050.0,100030.0,0.549824]
[1738681138769,1.50028722,100050.0,100030.0,0.349891]
[1738681139407,1.50028722,100050.0,100030.0,0.65220306]
[1738681139618,0.0185937,100040.0,100030.0,0.27533806]
[1738681140629,1.50028722,100050.0,100040.0,0.14994]
[1738681141183,1.50028722,100050.0,100040.0,0.27652453]
[1738681141184,0.00028722,100050.0,100040.0,0.27652453]
[1738681141388,0.00028722,100050.0,100040.0,0.27532506]
[1738681141996,0.00028722,100050.0,100030.0,0.55003828]
[1738681142198,0.00028722,100050.0,100030.0,0.00022428]
[1738681142463,0.55003522,100050.0,100030.0,0.00022428]
[1738681142590,0.14994,100040.0,100030.0,0.00022428]
[1738681142818,0.938169,100050.0,100030.0,0.00022428]
[1738681143062,0.14994,100040.0,100030.0,0.00022428]
[1738681143576,0.45356143,100040.0,100030.0,0.00022428]
[1738681143977,0.25232506,100040.0,100030.0,0.00022428]
[1738681147441,0.14994,100040.0,100030.0,0.00022428]
[1738681147648,0.55003522,100050.0,100030.0,0.15017528]
[1738681147898,0.55003522,100050.0,100030.0,0.00022428]
[1738681148315,0.14994,100040.0,100030.0,0.00022428]
[1738681148525,0.25232506,100040.0,100030.0,0.00022428]
[1738681148724,0.16856107,100040.0,100030.0,0.00022428]
[1738681149146,0.27094613,100040.0,100030.0,0.00022428]
[1738681149666,0.01862107,100040.0,100030.0,0.00022428]
[1738681149902,0.55003522,100050.0,100030.0,0.00022428]
[1738681150104,0.35012722,100050.0,100030.0,0.15017828]
[1738681150305,0.15022222,100050.0,100030.0,0.15017828]
[1738681150533,1.5,100040.0,100030.0,0.33230816]
[1738681150729,1.5,100040.0,100030.0,0.53223516]
[1738681150926,1.5,100040.0,100030.0,0.00022428]
[1738681152623,1.64994,100040.0,100030.0,0.00022428]
[1738681152824,1.5,100040.0,100030.0,0.00022428]
[1738681153256,0.64160472,100040.0,100030.0,0.00022428]
[1738681153565,1.34522615,100040.0,100030.0,0.00022428]
[1738681153753,1.39502615,100040.0,100030.0,0.00022428]
[1738681153914,1.57562615,100040.0,100030.0,0.00022428]
[1738681154108,1.47562615,100040.0,100030.0,0.00022428]
[1738681154518,1.27686252,100040.0,100030.0,0.00022428]
[1738681154765,0.76169042,100040.0,100030.0,0.00022428]
[1738681154972,1.0591957,100040.0,100030.0,0.00022428]
[1738681155323,1.29574251,100040.0,100030.0,0.00022428]
[1738681155521,0.94675714,100040.0,100030.0,0.00022428]
[1738681155780,0.67166614,100040.0,100030.0,0.00022428]
[1738681156045,1.07166614,100040.0,100030.0,0.00022428]
[1738681156279,1.19716086,100040.0,100030.0,0.00022428]
[1738681156483,1.10716086,100040.0,100030.0,0.00022428]
[1738681156702,1.30839723,100040.0,100030.0,0.00022428]
[1738681156921,1.10716086,100040.0,100030.0,0.00022428]
[1738681157136,1.10916086,100040.0,100030.0,0.00022428]